lending/lending_fUSD_20240410
["ID","MTS","AMOUNT","RATE_DAILY","PERIOD"]
[322082221,1712753439353,-6800.0,0.00026,2]
[322082222,1712753439364,-450534.15294772,0.00026,2]
[322082223,1712753439373,-225.22917595,0.00026262,2]
[322082224,1712753439383,-1000.0,0.00026362,2]
[322082225,1712753439392,-545.89833177,0.00026446,2]
[322082226,1712753439401,-209.48,0.00026669,2]
[322082227,1712753439411,-502.0,0.00026712,2]
[322082228,1712753439420,-720.0,0.000269,2]
[322082229,1712753439429,-545.89833177,0.00026925,2]
[322082230,1712753439438,-1000.0,0.00026956,2]
[322082231,1712753439447,-155.05767173,0.00027,2]
[322082232,1712753439456,-400.0,0.00027,3]
[322082233,1712753439465,-231.98,0.00027025,2]
[322082234,1712753439475,-200.13,0.00027397,2]
[322082235,1712753439484,-157.19,0.00027397,2]
[322082236,1712753439493,-239.06904616,0.00027399,2]
[322082237,1712753439503,-3493.04,0.000274,2]
[322082238,1712753439513,-3493.04,0.000274,2]
[322082239,1712753439523,-3493.04,0.000274,2]
[322082240,1712753439533,-3493.04,0.000274,2]
[322082241,1712753439542,-3493.04,0.000274,2]
[322082242,1712753439552,-545.89833177,0.00027404,2]
[322082243,1712753439561,-545.89833177,0.00027883,2]
[322082244,1712753439571,-502.0,0.00027945,2]
[322082245,1712753439587,-225.22917593,0.00028031,2]
[322082246,1712753439596,-389.96779382,0.0002818,2]
[322082247,1712753439606,-627.12501668,0.00028206,4]
[322082248,1712753439616,-545.89833177,0.00028362,2]
[322082249,1712753439625,-1402.45989186,0.00028393,2]
[322082250,1712753439634,-1000.0,0.00028493,2]
[322082251,1712753439643,-1000.0,0.00028493,2]
[322082252,1712753439652,-1000.0,0.00028493,2]
[322082253,1712753439664,-1000.0,0.00028493,2]
[322082254,1712753439673,-1000.0,0.00028493,2]
[322082255,1712753439682,-1000.0,0.00028493,2]
[322082256,1712753439691,-1000.0,0.00028493,2]
[322082257,1712753439700,-1000.0,0.00028493,2]
[322082259,1712753439873,-1000.0,0.00028493,2]
[322082260,1712753439883,-1000.0,0.00028493,2]
[322082261,1712753439895,-1056.0,0.00028493,2]
[322082262,1712753439904,-173.17,0.00028498,2]
[322082263,1712753439914,-3541.86128273,0.00028518,2]
[322082264,1712753439923,-13837.02003813,0.00028518,2]
[322082265,1712753439934,-6924.06841522,0.0002871,2]
[322082266,1712753439944,-545.89833177,0.00028842,2]
[322082267,1712753439953,-209.48,0.00028933,2]
[322082268,1712753439962,-6744.92204359,0.00029,2]
[322082269,1712753439972,-450.0,0.00029,3]
[322082270,1712753439983,-150.92,0.00029,2]
[322082271,1712753439993,-5800.0,0.00029064,2]
[322082272,1712753440002,-508.0,0.00029178,2]
[322082273,1712753440011,-545.89833177,0.00029321,2]
[322082274,1712753440021,-322.50431442,0.00029329,2]
[322082275,1712753440030,-1000.0,0.00029407,2]
[322082276,1712753440040,-200.0,0.00029429,2]
[322082277,1712753440049,-322.50431441,0.00029472,2]
[322082278,1712753440058,-441.77418907,0.000295,3]
[322082279,1712753440068,-1459.95169363,0.00029524,2]
[322082280,1712753440082,-322.50431441,0.00029615,2]
[322082281,1712753440092,-150.0,0.00029626,2]
[322082282,1712753440102,-150.0,0.00029631,2]
[322082283,1712753440111,-150.0,0.00029632,2]
[322082284,1712753440121,-150.0,0.00029634,2]
[322082285,1712753440131,-150.0,0.00029636,2]
[322082286,1712753440140,-150.0,0.00029637,2]
[322082287,1712753440150,-150.0,0.00029644,2]
[322082288,1712753440159,-150.0,0.00029645,2]
[322082289,1712753440169,-150.0,0.00029646,2]
[322082290,1712753440178,-150.0,0.00029649,2]
[322082291,1712753440188,-150.0,0.00029649,2]
[322082292,1712753440196,-150.0,0.00029651,2]
[322082293,1712753440206,-150.0,0.00029651,2]
[322082294,1712753440215,-150.0,0.00029661,2]
[322082295,1712753440224,-150.0,0.00029669,2]
[322082296,1712753440233,-150.0,0.00029671,2]
[322082297,1712753440243,-150.0,0.00029672,2]
[322082298,1712753440252,-150.0,0.00029674,2]
[322082299,1712753440262,-150.0,0.0002968,2]
[322082300,1712753440271,-150.0,0.00029684,2]
[322082301,1712753440280,-150.0,0.00029684,2]
[322082302,1712753440289,-1459.95169363,0.00029689,2]
[322082303,1712753440299,-150.0,0.0002969,2]
[322082304,1712753440308,-150.0,0.00029698,2]
[322082305,1712753440318,-150.0,0.00029698,2]
[322082306,1712753440332,-150.0,0.00029699,2]
[322082307,1712753440342,-375.42392,0.000297,2]
[322082308,1712753440351,-150.0,0.00029704,2]
[322082309,1712753440360,-1296.87887427,0.00029706,2]
[322082310,1712753440370,-1500.0,0.00029708,2]
[322082311,1712753440379,-150.0,0.00029711,2]
[322082312,1712753440389,-150.0,0.00029711,2]
[322082313,1712753440398,-150.0,0.00029717,2]
[322082314,1712753440407,-150.0,0.00029718,2]
[322082315,1712753440416,-150.0,0.00029719,2]
[322082316,1712753440426,-150.0,0.00029719,2]
[322082317,1712753440436,-150.0,0.00029728,2]
[322082318,1712753440446,-150.0,0.0002973,2]
[322082319,1712753440455,-150.0,0.0002973,2]
[322082320,1712753440465,-150.0,0.00029731,2]
[322082321,1712753440474,-150.0,0.00029732,2]
[322082322,1712753440484,-150.0,0.00029734,2]
[322082323,1712753440493,-150.0,0.00029741,2]
[322082324,1712753440502,-150.0,0.00029744,2]
[322082325,1712753440512,-150.0,0.00029745,2]
[322082326,1712753440522,-150.0,0.00029755,2]
[322082327,1712753440531,-150.0,0.00029755,2]
[322082328,1712753440541,-322.50431441,0.00029757,2]
[322082329,1712753440550,-200.0,0.00029759,2]
[322082330,1712753440560,-150.0,0.00029761,2]
[322082331,1712753440570,-150.0,0.00029762,2]
[322082332,1712753440584,-150.0,0.00029764,2]
[322082333,1712753440593,-150.0,0.00029767,2]
[322082334,1712753440602,-150.0,0.00029769,2]
[322082335,1712753440612,-150.0,0.00029771,2]
[322082336,1712753440622,-150.0,0.00029774,2]
[322082337,1712753440632,-150.0,0.00029775,2]
[322082338,1712753440641,-150.0,0.00029781,2]
[322082339,1712753440651,-150.0,0.00029784,2]
[322082340,1712753440662,-150.0,0.00029785,2]
[322082341,1712753440671,-150.0,0.00029786,2]
[322082342,1712753440681,-150.0,0.00029796,2]
[322082343,1712753440691,-150.0,0.00029797,2]
[322082344,1712753440700,-150.0,0.00029798,2]
[322082345,1712753440709,-599.73265293,0.000298,2]
[322082346,1712753440719,-13066.27307732,0.000298,2]
[322082347,1712753440729,-225.22917593,0.000298,2]
[322082348,1712753440739,-545.89833177,0.000298,2]
[322082349,1712753440749,-150.0,0.00029807,2]
[322082350,1712753440758,-150.0,0.00029807,2]
[322082351,1712753440767,-150.0,0.00029809,2]
[322082352,1712753440776,-150.0,0.00029816,2]
[322082353,1712753440786,-150.0,0.00029817,2]
[322082354,1712753440795,-150.0,0.00029824,2]
[322082355,1712753440805,-150.0,0.00029824,2]
[322082356,1712753440815,-150.0,0.0002983,2]
[322082357,1712753440828,-150.0,0.00029833,2]
[322082358,1712753440843,-150.0,0.00029835,2]
[322082359,1712753440853,-150.0,0.00029838,2]
[322082360,1712753440863,-150.0,0.00029839,2]
[322082361,1712753440872,-150.0,0.00029849,2]
[322082362,1712753440882,-150.0,0.0002985,2]
[322082363,1712753440891,-362.0345,0.0002985,2]
[322082364,1712753440900,-150.0,0.00029852,2]
[322082365,1712753440909,-150.0,0.00029853,2]
[322082366,1712753440919,-150.0,0.00029855,2]
[322082367,1712753440929,-150.0,0.00029855,2]
[322082368,1712753440939,-150.0,0.00029856,2]
[322082369,1712753440949,-150.0,0.00029861,2]
[322082370,1712753440958,-150.0,0.00029866,2]
[322082371,1712753440968,-150.0,0.00029869,2]
[322082372,1712753440978,-177.0,0.0002987,15]
[322082373,1712753440987,-327.0,0.0002987,15]
[322082374,1712753440997,-814.0,0.0002987,15]
[322082375,1712753441006,-1500.0,0.00029872,2]
[322082376,1712753441016,-150.0,0.00029872,2]
[322082377,1712753441026,-150.0,0.00029872,2]
[322082378,1712753441035,-150.0,0.00029874,2]
[322082379,1712753441044,-150.0,0.00029877,2]
[322082380,1712753441054,-150.0,0.00029877,2]
[322082381,1712753441063,-177.0,0.0002988,15]
[322082382,1712753441072,-327.0,0.0002988,15]
[322082383,1712753441086,-814.0,0.0002988,15]
[322082384,1712753441096,-150.0,0.00029883,2]
[322082385,1712753441105,-150.0,0.00029884,2]
[322082386,1712753441114,-150.0,0.00029886,2]
[322082387,1712753441123,-150.0,0.00029888,2]
[322082388,1712753441132,-150.0,0.00029888,2]
[322082389,1712753441141,-177.0,0.0002989,15]
[322082390,1712753441150,-327.0,0.0002989,15]
[322082391,1712753441159,-814.0,0.0002989,15]
[322082392,1712753441168,-254.15469957,0.0002989,2]
[322082393,1712753441177,-254.15469957,0.0002989,2]
[322082394,1712753441186,-173.17,0.0002989,2]
[322082395,1712753441195,-173.17,0.0002989,2]
[322082396,1712753441204,-173.17,0.0002989,2]
[322082397,1712753441214,-173.17,0.0002989,2]
[322082398,1712753441223,-173.17,0.0002989,2]
[322082399,1712753441232,-150.0,0.00029895,2]
[322082400,1712753441241,-4094.19745766,0.00029897,2]
[322082401,1712753441250,-40888.51797078,0.00029897,2]
[322082402,1712753441259,-35718.47649582,0.00029897,2]
[322082403,1712753441269,-150.0,0.00029898,2]
[322082404,1712753441278,-150.0,0.00029899,2]
[322082405,1712753441287,-2856.50833,0.000299,2]
[322082406,1712753441296,-241.76731449,0.000299,2]
[322082407,1712753441306,-641.47152024,0.000299,2]
[322082408,1712753441315,-156562.73532376,0.000299,2]
[322082409,1712753441331,-7283.63819999,0.000299,2]
[322082410,1712753441341,-20441.37710623,0.000299,2]
[322082411,1712753441353,-2533.59514911,0.000299,2]
[322082412,1712753441364,-4719.29631204,0.000299,2]
[322082413,1712753441375,-3451.19322681,0.000299,2]
[322082414,1712753441402,-13603.4,0.000299,2]
[322082415,1712753441413,-11868.50831128,0.000299,2]
[322082416,1712753441424,-3337.5717888,0.000299,2]
[322082417,1712753441434,-681.897855,0.000299,2]
[322082418,1712753441445,-331.2,0.000299,2]
[322082419,1712753441456,-740.7095,0.000299,2]
[322082474,1712753443597,-384.83468693,0.00025999,2]
[322082480,1712753443611,-115.16531307,0.00025999,2]
[322082485,1712753443620,-500.0,0.00025999,2]
[322082490,1712753443629,-4.71626739,0.00026162,2]
[322082507,1712753443680,-307.9991438,0.00026162,2]
[322082510,1712753443690,-150.0,0.00029726,2]
[322082513,1712753443699,-150.0,0.00029728,2]
[322082516,1712753443709,-150.0,0.00029736,2]
[322082519,1712753443718,-150.0,0.00029738,2]
[322082522,1712753443728,-150.0,0.00029756,2]
[322082525,1712753443737,-150.0,0.00029757,2]
[322082527,1712753443746,-150.0,0.0002976,2]
[322082530,1712753443755,-150.0,0.0002976,2]
[322082533,1712753443765,-150.0,0.00029761,2]
[322082536,1712753443775,-150.0,0.00029769,2]
[322082539,1712753443785,-150.0,0.00029777,2]
[322082542,1712753443795,-150.0,0.00029779,2]
[322082545,1712753443806,-150.0,0.0002978,2]
[322082548,1712753443816,-150.0,0.00029782,2]
[322082551,1712753443829,-150.0,0.00029787,2]
[322082554,1712753443840,-150.0,0.00029788,2]
[322082557,1712753443850,-150.0,0.00029789,2]
[322082560,1712753443863,-150.0,0.00029789,2]
[322082563,1712753443872,-150.0,0.0002979,2]
[322082567,1712753443882,-150.0,0.00029795,2]
[322082569,1712753443892,-150.0,0.00029795,2]
[322082573,1712753443902,-150.0,0.00029798,2]
[322082576,1712753443911,-150.0,0.00029798,2]
[322082578,1712753443921,-150.0,0.00029803,2]
[322082582,1712753443931,-150.0,0.00029807,2]
[322082584,1712753443941,-1500.0,0.00029808,2]
[322082587,1712753443950,-150.0,0.00029811,2]
[322082590,1712753443960,-150.0,0.00029811,2]
[322082592,1712753443969,-150.0,0.00029814,2]
[322082595,1712753443978,-150.0,0.00029818,2]
[322082597,1712753443988,-150.0,0.00029819,2]
[322082599,1712753443997,-150.0,0.00029821,2]
[322082601,1712753444007,-150.0,0.00029821,2]
[322082603,1712753444016,-150.0,0.00029825,2]
[322082605,1712753444026,-150.0,0.00029826,2]
[322082607,1712753444036,-150.0,0.00029833,2]
[322082609,1712753444045,-150.0,0.00029837,2]
[322082611,1712753444054,-150.0,0.00029838,2]
[322082613,1712753444064,-150.0,0.00029843,2]
[322082615,1712753444073,-150.0,0.00029844,2]
[322082617,1712753444086,-150.0,0.00029854,2]
[322082619,1712753444096,-150.0,0.00029858,2]
[322082621,1712753444105,-150.0,0.00029864,2]
[322082623,1712753444114,-150.0,0.00029867,2]
[322082625,1712753444124,-150.0,0.00029868,2]
[322082627,1712753444133,-150.0,0.00029878,2]
[322082629,1712753444142,-150.0,0.00029884,2]
[322082631,1712753444151,-1500.0,0.00029886,2]
[322082633,1712753444160,-150.0,0.00029887,2]
[322082635,1712753444169,-150.0,0.00029891,2]
[322082637,1712753444178,-150.0,0.00029891,2]
[322082639,1712753444188,-150.0,0.00029894,2]
[322082641,1712753444197,-150.0,0.00029894,2]
[322082642,1712753444206,-150.0,0.00029896,2]
[322082645,1712753444216,-150.0,0.00029899,2]
[322082647,1712753444226,-2351457.17346457,0.000299,2]
[322082649,1712753444238,-1331859.38954165,0.000299,2]
[322082651,1712753444247,-312.28,0.000299,2]
[322082653,1712753444256,-40034.80712573,0.000299,2]
[322082655,1712753444265,-150.0,0.000299,2]
[322082657,1712753444274,-322.50431441,0.000299,2]
[322082659,1712753444283,-150.0,0.000299,2]
[322082661,1712753444292,-150.0,0.00029902,2]
[322082663,1712753444302,-150.0,0.00029909,2]
[322082665,1712753444311,-150.0,0.0002991,2]
[322082667,1712753444320,-150.0,0.00029911,2]
[322082669,1712753444333,-150.0,0.00029912,2]
[322082671,1712753444342,-150.0,0.00029913,2]
[322082673,1712753444351,-150.0,0.00029913,2]
[322082675,1712753444360,-150.0,0.00029916,2]
[322082677,1712753444370,-150.0,0.00029918,2]
[322082678,1712753444380,-150.0,0.00029919,2]
[322082680,1712753444389,-150.0,0.0002992,2]
[322082683,1712753444399,-150.0,0.0002992,2]
[322082685,1712753444409,-150.0,0.0002992,2]
[322082687,1712753444419,-150.0,0.00029921,2]
[322082689,1712753444428,-150.0,0.00029922,2]
[322082691,1712753444437,-150.0,0.00029922,2]
[322082692,1712753444447,-150.0,0.00029924,2]
[322082695,1712753444456,-150.0,0.00029926,2]
[322082697,1712753444466,-150.0,0.00029927,2]
[322082699,1712753444475,-150.0,0.0002993,2]
[322082701,1712753444484,-150.0,0.00029933,2]
[322082703,1712753444493,-150.0,0.00029937,2]
[322082704,1712753444503,-150.0,0.00029939,2]
[322082706,1712753444513,-150.0,0.00029939,2]
[322082708,1712753444522,-150.0,0.00029942,2]
[322082710,1712753444531,-150.0,0.00029943,2]
[322082712,1712753444541,-150.0,0.00029944,2]
[322082714,1712753444551,-150.0,0.00029945,2]
[322082716,1712753444561,-150.0,0.00029948,2]
[322082719,1712753444570,-150.0,0.00029948,2]
[322082721,1712753444588,-150.0,0.00029948,2]
[322082723,1712753444598,-150.0,0.00029952,2]
[322082725,1712753444608,-150.0,0.00029959,2]
[322082727,1712753444617,-150.0,0.00029965,2]
[322082729,1712753444627,-150.5,0.0002998,15]
[322082731,1712753444636,-150.5,0.0002998,15]
[322082733,1712753444646,-150.0,0.00029983,2]
[322082735,1712753444656,-150.0,0.00029986,2]
[322082737,1712753444666,-150.0,0.00029987,2]
[322082739,1712753444676,-150.0,0.00029989,2]
[322082741,1712753444688,-154.14,0.0002999,15]
[322082743,1712753444697,-150.5,0.0002999,15]
[322082745,1712753444706,-241.5,0.0002999,15]
[322082747,1712753444716,-150.5,0.0002999,15]
[322082749,1712753444725,-150.5,0.0002999,15]
[322082751,1712753444734,-150.5,0.0002999,15]
[322082766,1712753444876,-150.5,0.0002999,15]
[322082767,1712753444916,-209.72,0.0002999,15]
[322082769,1712753444927,-8934.490701,0.0002999,2]
[322082771,1712753444937,-2777.3776426,0.0002999,2]
[322082773,1712753444948,-134970.8629723,0.0002999,2]
[322082774,1712753444959,-1793.5747086,0.0002999,2]
[322082775,1712753444969,-168.9723334,0.0002999,2]
[322082776,1712753444980,-150.0,0.00029994,2]
[322082777,1712753444991,-987.84678578,0.00029999,15]
[322082779,1712753445001,-206.59266165,0.00029999,2]
[322082781,1712753445012,-5825.99102334,0.00029999,2]
[322082783,1712753445022,-475.76753059,0.00029999,2]
[322082785,1712753445033,-171.95115281,0.00029999,2]
[322082786,1712753445044,-1925134.67012852,0.0003,2]
[322082788,1712753445054,-23722.27564431,0.0003,4]
[322082790,1712753445064,-405.59680121,0.0003,4]
[322082792,1712753445073,-155.0,0.0003,2]
[322082794,1712753445091,-19311.62545863,0.0003,4]
[322082795,1712753445101,-183.83412953,0.0003,2]
[322082797,1712753445111,-6939.13491161,0.0003,2]
[322082799,1712753445121,-9502.82434769,0.0003,2]
[322082801,1712753445130,-9377.02357553,0.0003,2]
[322082802,1712753445140,-1699.64945613,0.0003,2]
[322082804,1712753445150,-394.0,0.0003,2]
[322082806,1712753445160,-1363.3,0.0003,12]
[322082808,1712753445169,-680.05334905,0.0003,4]
[322082809,1712753445179,-448.62769266,0.0003,7]
[322082810,1712753445189,-378.7,0.0003,2]
[322082811,1712753445199,-2000.0,0.0003,2]
[322082812,1712753445209,-200.0,0.0003,2]
[322082813,1712753445218,-648.28772614,0.0003,2]
[322082814,1712753445228,-2000.0,0.0003,2]
[322082815,1712753445238,-200.0,0.0003,2]
[322082816,1712753445248,-3000.0,0.0003,2]
[322082817,1712753445258,-3000.0,0.0003,2]
[322082818,1712753445268,-155.0,0.0003,2]
[322082819,1712753445277,-3000.0,0.0003001,2]
[322082820,1712753445288,-3000.0,0.0003001,2]
[322082821,1712753445298,-3000.0,0.0003002,2]
[322082822,1712753445308,-3000.0,0.0003002,2]
[322082823,1712753445318,-3000.0,0.0003003,2]
[322082824,1712753445332,-4782.425577,0.0003003,2]
[322082825,1712753445341,-3000.0,0.0003004,2]
[322082826,1712753445351,-3000.0,0.0003005,2]
[322082827,1712753445360,-3000.0,0.0003006,2]
[322082828,1712753445370,-3000.0,0.0003007,2]
[322082829,1712753445379,-3000.0,0.0003008,2]
[322082830,1712753445389,-3000.0,0.0003009,2]
[322082831,1712753445399,-5317.465543,0.000301,2]
[322082832,1712753445409,-2108.419,0.00030166,2]
[322082833,1712753445418,-255.588,0.00030166,7]
[322082834,1712753445428,-1459.95169363,0.00030264,2]
[322082835,1712753445438,-2000.0,0.000303,2]
[322082836,1712753445447,-200.0,0.000303,2]
[322082837,1712753445457,-2000.0,0.000303,2]
[322082838,1712753445468,-200.0,0.000303,2]
[322082839,1712753445477,-2059.03979421,0.00030303,2]
[322082840,1712753445487,-1459.95169364,0.00030595,2]
[322082841,1712753445497,-2000.0,0.00030603,2]
[322082842,1712753445506,-200.0,0.00030603,2]
[322082843,1712753445516,-200.0,0.00030603,2]
[322082844,1712753445525,-2000.0,0.00030909,2]
[322082845,1712753445535,-200.0,0.00030909,2]
[322082846,1712753445545,-200.0,0.00030909,2]
[322082847,1712753445556,-150.0,0.00030979,2]
[322082848,1712753445566,-3002.40238545,0.00031,2]
[322082849,1712753445580,-490.69655097,0.00031,4]
[322082850,1712753445592,-500.0,0.00031,3]
[322082851,1712753445603,-166.15,0.00031041,2]
[322082852,1712753445613,-464.344,0.00031083,2]
[322082853,1712753445623,-2288.0,0.00031083,2]
[322082854,1712753445634,-1404.64,0.00031083,2]
[322082855,1712753445644,-971.142,0.00031083,2]
[322082856,1712753445654,-298.995,0.00031083,2]
[322082857,1712753445665,-1228.0,0.00031083,2]
[322082858,1712753445674,-1260.0,0.00031083,2]
[322082859,1712753445684,-540.0,0.00031083,2]
[322082860,1712753445694,-615.989,0.00031083,2]
[322082861,1712753445704,-1945.0,0.00031083,2]
[322082862,1712753445714,-280.0,0.00031083,2]
[322082865,1712753445723,-435.0,0.00031083,2]
[322082867,1712753445733,-806.0,0.00031083,2]
[322082870,1712753445743,-1470.0,0.00031083,2]
[322082873,1712753445753,-150.0,0.00031083,2]
[322082875,1712753445764,-1140.0,0.00031083,2]
[322082878,1712753445774,-3039.0,0.00031083,2]
[322082880,1712753445784,-398.0,0.00031083,2]
[322082882,1712753445795,-1645.193,0.00031083,2]
[322082885,1712753445804,-2437.0,0.00031083,2]
[322082888,1712753445814,-151.865,0.00031083,2]
[322082892,1712753445824,-443.715,0.00031083,2]
[322082895,1712753445843,-354.0,0.00031083,2]
[322082898,1712753445853,-214.0,0.00031083,2]
[322082901,1712753445863,-5711.0,0.00031083,2]
[322082904,1712753445873,-160.144,0.00031083,2]
[322082906,1712753445885,-1313.0,0.00031083,2]
[322082909,1712753445895,-208.0,0.00031083,2]
[322082912,1712753445904,-37570.0,0.00031083,2]
[322082914,1712753445915,-4796.0,0.00031083,2]
[322082916,1712753445925,-2463.0,0.00031083,2]
[322082918,1712753445935,-154.06,0.00031083,2]
[322082919,1712753445945,-152.576,0.00031083,2]
[322082920,1712753445956,-155.992,0.00031083,2]
[322082921,1712753445966,-1052.0,0.00031083,2]
[322082923,1712753445976,-209.48,0.00031197,2]
[322082926,1712753445986,-2000.0,0.00031218,2]
[322082929,1712753445996,-200.0,0.00031218,2]
[322082933,1712753446006,-1402.45989186,0.00031257,2]
[322082937,1712753446016,-151.0,0.00031387,2]
[322082942,1712753446027,-275.5,0.000317,2]
[322082946,1712753446038,-627.12501668,0.00031821,5]
[322082949,1712753446048,-332.11656254,0.00032,4]
[322082954,1712753446058,-5000.0,0.00032,7]
[322082959,1712753446068,-600.0892,0.00032,2]
[322082963,1712753446080,-600.0,0.00032,120]
[322082967,1712753446090,-1165.04970358,0.00032002,4]
[322082971,1712753446099,-9286.00535786,0.0003211,2]
[322082975,1712753446109,-375.42393,0.000322,2]
[322082979,1712753446119,-3541.86128273,0.0003243,2]
[322082983,1712753446128,-13837.02003813,0.0003243,2]
[322082986,1712753446137,-2746.55,0.00032603,2]
[322082990,1712753446147,-6697.01,0.00032603,2]
[322082993,1712753446156,-500.0,0.000328,2]
[322082997,1712753446166,-500.0,0.000328,2]
[322083001,1712753446175,-500.0,0.000328,2]
[322083004,1712753446185,-500.0,0.000328,2]
[322083007,1712753446195,-500.0,0.000328,2]
[322083010,1712753446205,-500.0,0.000328,2]
[322083014,1712753446214,-3528.30440218,0.000328,2]
[322083019,1712753446233,-2627.63,0.00032876,2]
[322083022,1712753446245,-2627.63,0.00032876,2]
[322083025,1712753446256,-2627.63,0.00032876,2]
[322083029,1712753446268,-2627.63,0.00032876,2]
[322083033,1712753446278,-2627.63,0.00032876,2]
[322083036,1712753446288,-2627.63,0.00032876,2]
[322083039,1712753446298,-2627.63,0.00032876,2]
[322083042,1712753446308,-2627.63,0.00032876,2]
[322083045,1712753446318,-2627.63,0.00032876,2]
[322083048,1712753446331,-2627.63,0.00032876,2]
[322083050,1712753446341,-2627.63,0.00032876,2]
[322083054,1712753446352,-2627.63,0.00032876,2]
[322083057,1712753446363,-2627.63,0.00032876,2]
[322083060,1712753446374,-2627.63,0.00032876,2]
[322083063,1712753446384,-2627.63,0.00032876,2]
[322083066,1712753446394,-2627.63,0.00032876,2]
[322083069,1712753446404,-2627.63,0.00032876,2]
[322083072,1712753446414,-2627.63,0.00032876,2]
[322083075,1712753446424,-2627.63,0.00032876,2]
[322083078,1712753446434,-2627.63,0.00032876,2]
[322083081,1712753446445,-2627.63,0.00032876,2]
[322083084,1712753446455,-2627.63,0.00032876,2]
[322083087,1712753446464,-2627.63,0.00032876,2]
[322083090,1712753446474,-2627.68829943,0.00032876,2]
[322083093,1712753446485,-150.0,0.00032877,2]
[322083096,1712753446494,-378.7,0.000329,2]
[322083099,1712753446504,-312.28,0.000329,2]
[322083102,1712753446514,-3000.0,0.000329,2]
[322083105,1712753446524,-635.0,0.00032986,2]
[322083107,1712753446534,-402.0,0.00032986,2]
[322083109,1712753446544,-1722.803197,0.00033,2]
[322083111,1712753446555,-550.0,0.00033,3]
[322083113,1712753446564,-12880.65403589,0.00033003,30]
[322083115,1712753446574,-181.0,0.00033003,30]
[322083117,1712753446589,-36670.72836694,0.00033003,30]
[322083119,1712753446599,-788.0,0.00033003,30]
[322083121,1712753446609,-2944.25819904,0.00033003,30]
[322083123,1712753446618,-4532.76779588,0.00033003,2]
[322083125,1712753446627,-661.49020325,0.00033003,30]
[322083127,1712753446636,-476.30452732,0.00033003,30]
[322083129,1712753446646,-356.00255817,0.00033003,30]
[322083132,1712753446655,-1414.99578251,0.00033003,2]
[322083135,1712753446665,-803.60096307,0.00033003,30]
[322083137,1712753446675,-822.58278741,0.00033003,30]
[322083139,1712753446685,-424.45822983,0.00033003,30]
[322083142,1712753446695,-2567.26047629,0.00033003,30]
[322083145,1712753446706,-1210.0,0.00033003,2]
[322083148,1712753446716,-7543.37000398,0.00033003,30]
[322083150,1712753446725,-5452.22850634,0.00033003,30]
[322083153,1712753446735,-979.55727397,0.00033003,30]
[322083155,1712753446745,-688.82675518,0.00033003,30]
[322083157,1712753446755,-57818.93565956,0.00033003,30]
[322083159,1712753446765,-2921.91445954,0.00033003,2]
[322083161,1712753446775,-4678.41395019,0.00033003,2]
[322083163,1712753446784,-1477.95445457,0.00033003,2]
[322083165,1712753446794,-7166.40712419,0.00033003,2]
[322083168,1712753446807,-5038.37309096,0.00033003,2]
[322083171,1712753446816,-2656.63723814,0.00033003,2]
[322083174,1712753446826,-2385.13519026,0.00033003,2]
[322083177,1712753446844,-5448.84593868,0.00033003,2]